bitfinex/quotes_BTCUSD_20251021
["timestamp","ask_amount","ask_price","bid_price","bid_amount"]
[1761046552877,3.42868391,108610.0,108600.0,0.00260015]
[1761046553081,4.13201738,108610.0,108600.0,0.18676221]
[1761046553313,4.13201738,108610.0,108600.0,0.00260015]
[1761046553509,3.39092411,108610.0,108600.0,0.20517841]
[1761046553801,3.27396411,108610.0,108600.0,0.18676221]
[1761046554013,0.08981901,108610.0,108600.0,0.18676221]
[1761046554237,0.97729758,108610.0,108600.0,0.18676221]
[1761046554894,0.27396411,108610.0,108600.0,0.18676221]
[1761046555119,0.97729758,108610.0,108600.0,0.18676221]
[1761046557613,0.97729758,108610.0,108600.0,0.00260015]
[1761046558459,0.97729758,108610.0,108600.0,0.18676221]
[1761046558669,0.79315248,108610.0,108600.0,0.20517841]
[1761046558877,0.97729758,108610.0,108600.0,0.18676221]
[1761046559705,0.27396411,108610.0,108600.0,0.18676221]
[1761046559916,0.97729758,108610.0,108600.0,0.18676221]
[1761046560124,0.97729758,108610.0,108600.0,0.00260015]
[1761046560360,0.27396411,108610.0,108600.0,0.20517841]
[1761046560573,0.97729758,108610.0,108600.0,0.18676221]
[1761046561366,0.97729758,108610.0,108600.0,0.00260015]
[1761046561927,1.01459456,108610.0,108600.0,0.18676221]
[1761046562353,0.31126109,108610.0,108600.0,0.18676221]
[1761046562573,1.01459456,108610.0,108600.0,0.18676221]
[1761046563201,1.01459456,108610.0,108600.0,0.00260015]
[1761046563406,1.35459456,108610.0,108600.0,0.00260015]
[1761046564470,4.35459456,108610.0,108600.0,0.00260015]
[1761046564906,4.07276241,108610.0,108600.0,0.00260015]
[1761046566729,0.08981901,108610.0,108600.0,0.18676221]
[1761046566938,0.08981901,108610.0,108600.0,0.20517841]
[1761046567059,0.08981901,108610.0,108600.0,0.18676221]
[1761046567476,0.27396411,108610.0,108600.0,0.18676221]
[1761046567670,0.54861731,108610.0,108600.0,0.18676221]
[1761046567876,0.54861731,108610.0,108600.0,0.30356221]
[1761046568287,0.73276241,108610.0,108600.0,0.30356221]
[1761046568991,0.74276241,108610.0,108600.0,0.30356221]
[1761046569310,0.74276241,108610.0,108600.0,0.11940015]
[1761046569729,0.74276241,108610.0,108600.0,0.32197841]
[1761046570118,0.74276241,108610.0,108600.0,0.30356221]
[1761046570344,0.74276241,108610.0,108600.0,0.18676221]
[1761046576071,0.74276241,108610.0,108600.0,0.00260015]
[1761046576278,4.08276241,108610.0,108600.0,0.00260015]
[1761046576456,4.17258142,108610.0,108600.0,0.00260015]
[1761046578745,4.17458142,108610.0,108600.0,0.00260015]
[1761046580580,4.18902423,108610.0,108600.0,0.00260015]
[1761046581431,4.09920522,108610.0,108600.0,0.00260015]
[1761046581672,0.91506012,108610.0,108600.0,0.18676221]
[1761046581889,0.64040692,108610.0,108600.0,0.18676221]
[1761046582094,0.11626182,108610.0,108600.0,0.30344221]
[1761046582301,0.10181901,108610.0,108600.0,0.30344221]
[1761046583239,0.012,108610.0,108600.0,0.30344221]
[1761046584466,0.011,108610.0,108600.0,0.30344221]
[1761046584667,0.01,108610.0,108600.0,0.30344221]
[1761046585738,0.01,108610.0,108600.0,0.30444221]
[1761046591882,0.81700616,108610.0,108600.0,0.30444221]
[1761046592048,0.59764818,108610.0,108600.0,0.30444221]
[1761046592584,0.41350308,108610.0,108600.0,0.30444221]
[1761046592828,0.46863048,108610.0,108600.0,0.30444221]
[1761046593041,0.01,108610.0,108600.0,0.30444221]
[1761046593248,0.46863048,108610.0,108600.0,0.30444221]
[1761046593872,0.01,108610.0,108600.0,0.30444221]
[1761046594058,0.46863048,108610.0,108600.0,0.30444221]
[1761046594655,0.01,108610.0,108600.0,0.30444221]
[1761046594905,0.46863048,108610.0,108600.0,0.30444221]
[1761046595851,0.01,108610.0,108600.0,0.30444221]
[1761046598195,0.64275981,108620.0,108610.0,0.1841451]
[1761046598403,0.73257882,108620.0,108610.0,0.20255961]
[1761046598617,0.73257882,108620.0,108610.0,0.20431429]
[1761046598824,0.73257882,108620.0,108610.0,0.18589978]
[1761046602331,0.74257882,108620.0,108610.0,0.18589978]
[1761046603914,0.01,108620.0,108610.0,0.18589978]
[1761046604612,0.01,108620.0,108610.0,1.07434927]
[1761046604823,1e-08,108620.0,108610.0,1.11053155]
[1761046605038,1e-08,108620.0,108610.0,0.65290107]
[1761046605248,1e-08,108620.0,108610.0,0.68058052]
[1761046605457,1e-08,108620.0,108610.0,0.67958052]
[1761046605668,1e-08,108620.0,108610.0,0.74940922]
[1761046605881,1e-08,108620.0,108610.0,0.75040922]
[1761046606930,1e-08,108620.0,108610.0,0.75140922]
[1761046608212,1e-08,108620.0,108610.0,0.72372977]
[1761046608647,1e-08,108620.0,108610.0,0.64441978]
[1761046609564,0.01000001,108620.0,108610.0,0.64441978]
[1761046610413,0.01000001,108620.0,108610.0,0.64341978]
[1761046610865,0.01000001,108620.0,108610.0,0.64241978]
[1761046611084,0.01000001,108620.0,108610.0,0.73223879]
[1761046611320,0.01000001,108620.0,108610.0,1.19286927]
[1761046611528,0.01000001,108620.0,108610.0,0.73423879]
[1761046614883,0.01000001,108620.0,108610.0,1.13760879]
[1761046623623,0.2148074,108650.0,108640.0,0.18409425]
[1761046623829,0.30462641,108650.0,108640.0,0.31886367]
[1761046624002,0.30462641,108650.0,108640.0,0.30045425]
[1761046624615,0.33230683,108650.0,108640.0,0.30045425]
[1761046624972,0.11749943,108650.0,108640.0,0.30094861]
[1761046627167,0.08981901,108650.0,108640.0,0.30094861]
[1761046628264,0.06435922,108660.0,108650.0,0.18407731]
[1761046628471,0.15417823,108660.0,108650.0,0.18407731]
[1761046631144,0.16417823,108660.0,108650.0,0.18407731]
[1761046631571,0.03768042,108660.0,108650.0,0.18407731]
[1761046631795,0.01,108660.0,108650.0,0.60577013]
[1761046632028,0.01,108660.0,108650.0,0.5873624]
[1761046632460,0.01,108660.0,108650.0,0.67718141]
[1761046632670,0.01,108660.0,108650.0,1.01718141]
[1761046633092,0.01,108660.0,108650.0,1.08668719]
[1761046633508,0.01,108660.0,108650.0,1.08768719]
[1761046633722,0.01,108660.0,108650.0,0.341]
[1761046633960,0.01,108660.0,108650.0,0.52507731]
[1761046634188,0.01,108660.0,108650.0,0.18507731]
[1761046634821,0.01,108660.0,108650.0,0.18607731]
[1761046635045,0.01,108660.0,108650.0,0.18507731]
[1761046635287,0.01,108660.0,108650.0,0.18407731]
[1761046635715,0.01,108660.0,108650.0,0.18507731]
[1761046636581,0.01,108660.0,108650.0,0.18542814]
[1761046640574,0.01,108660.0,108650.0,0.30170814]
[1761046641432,0.01,108660.0,108650.0,0.18542814]
[1761046641852,0.01,108660.0,108650.0,0.30166814]
[1761046642059,0.01,108660.0,108650.0,0.18542814]
[1761046642478,0.01,108660.0,108650.0,0.30166814]
[1761046644692,0.01,108660.0,108650.0,0.18542814]
[1761046644909,0.01,108660.0,108650.0,0.30170814]
[1761046645343,0.01,108660.0,108650.0,0.18542814]
[1761046645569,0.01,108660.0,108650.0,0.30166814]
[1761046648263,0.01,108660.0,108650.0,0.18542814]
[1761046648694,0.01,108660.0,108650.0,0.30166814]
[1761046649148,0.62418909,108680.0,108660.0,0.18406037]
[1761046649362,0.27386275,108670.0,108660.0,0.3186664]
[1761046649583,0.27386275,108670.0,108660.0,0.30026037]
[1761046649816,0.51257308,108680.0,108660.0,0.30026037]
[1761046650034,0.18404343,108670.0,108660.0,0.30026037]
[1761046651292,0.18404343,108670.0,108660.0,0.18406037]
[1761046651494,0.18404343,108670.0,108660.0,0.3186664]
[1761046651736,0.18404343,108670.0,108660.0,0.30026037]
[1761046651939,0.18404343,108670.0,108660.0,0.18406037]
[1761046652083,0.18404343,108670.0,108660.0,0.3186664]
[1761046652291,0.18404343,108670.0,108660.0,0.30026037]
[1761046653519,0.59319077,108680.0,108670.0,0.18404343]
[1761046654148,0.02802603,108680.0,108670.0,0.18404343]
[1761046654360,0.00035069,108680.0,108670.0,0.20244777]
[1761046654567,0.00035069,108680.0,108670.0,0.18404343]
[1761046654766,0.00035069,108680.0,108670.0,0.1968827]
[1761046655311,0.18404343,108670.0,108660.0,0.30099833]
[1761046655523,0.58732852,108670.0,108660.0,0.30099833]
[1761046656361,0.18404343,108670.0,108660.0,0.30099833]
[1761046656772,0.18404343,108670.0,108660.0,0.30199833]
[1761046657402,0.18404343,108670.0,108660.0,0.18579833]
[1761046657605,0.18404343,108670.0,108660.0,0.30215833]
[1761046657829,0.19404343,108670.0,108660.0,0.18579833]
[1761046658047,0.19404343,108670.0,108660.0,0.18479833]
[1761046658262,0.19404343,108670.0,108660.0,0.31956436]
[1761046658482,0.19404343,108670.0,108660.0,0.30115833]
[1761046659084,0.19404343,108670.0,108660.0,0.18479833]
[1761046659309,0.19404343,108670.0,108660.0,0.31956436]
[1761046659427,0.59732852,108670.0,108660.0,0.18479833]
[1761046659636,0.59732852,108670.0,108660.0,0.31952436]
[1761046659832,0.59732852,108670.0,108660.0,0.18479833]
[1761046660058,0.59732852,108670.0,108660.0,0.31952436]
[1761046660268,0.59732852,108670.0,108660.0,0.30111833]
[1761046660931,0.59732852,108670.0,108660.0,0.18479833]
[1761046661129,0.19404343,108670.0,108660.0,0.31952436]
[1761046661384,0.19404343,108670.0,108660.0,0.30111833]
[1761046662699,0.01,108670.0,108660.0,0.30111833]
[1761046662907,0.19404343,108670.0,108660.0,0.30111833]
[1761046663492,0.01,108670.0,108660.0,0.30111833]
[1761046664093,0.01,108670.0,108660.0,0.18479833]
[1761046664440,0.01,108670.0,108660.0,0.31948436]
[1761046664564,0.01,108670.0,108660.0,0.18479833]
[1761046664790,0.01,108670.0,108660.0,0.31948436]
[1761046664985,0.01,108670.0,108660.0,0.30107833]
[1761046667661,0.01,108670.0,108660.0,0.18479833]
[1761046667920,0.01,108670.0,108660.0,0.31948436]
[1761046668037,0.01,108670.0,108660.0,0.30107833]
[1761046668441,0.01,108670.0,108660.0,0.30207833]
[1761046669336,0.01,108670.0,108660.0,0.18579833]
[1761046669803,0.01,108670.0,108660.0,0.30203833]
[1761046673347,0.01,108670.0,108660.0,0.18579833]
[1761046673640,0.01,108670.0,108660.0,0.30203833]
[1761046673888,0.01,108670.0,108660.0,0.30199833]
[1761046674887,0.01,108670.0,108660.0,0.79510243]
[1761046675694,0.01,108670.0,108660.0,0.39181734]
[1761046677951,0.01,108670.0,108660.0,0.79510243]
[1761046678192,0.01,108670.0,108660.0,0.39181734]
[1761046680190,0.01,108670.0,108660.0,0.79510243]
[1761046680423,0.01,108670.0,108660.0,1.53838752]
[1761046680655,0.00035069,108680.0,108670.0,0.18404343]
[1761046680883,0.00035069,108680.0,108670.0,0.69555187]
[1761046681102,0.00035069,108680.0,108670.0,0.67714753]
[1761046681318,0.00035069,108680.0,108670.0,0.71332981]
[1761046682461,0.00035069,108680.0,108670.0,0.7243298]
[1761046682889,0.00035069,108680.0,108670.0,0.71432981]
[1761046683104,0.00035069,108680.0,108670.0,0.71532981]
[1761046683548,0.00035069,108680.0,108670.0,0.27586244]
[1761046683765,0.00035069,108680.0,108670.0,0.18604343]
[1761046684004,0.00035069,108680.0,108670.0,0.30228343]
[1761046684211,0.00035069,108680.0,108670.0,0.30128343]
[1761046684430,0.00035069,108680.0,108670.0,0.30228343]
[1761046684654,0.00035069,108680.0,108670.0,0.30128343]
[1761046684861,0.00035069,108680.0,108670.0,0.30028343]
[1761046685305,0.00035069,108680.0,108670.0,0.30128343]
[1761046685726,0.00035069,108680.0,108670.0,0.30028343]
[1761046691905,0.00035069,108680.0,108670.0,0.70328964]
[1761046692118,0.01035069,108680.0,108670.0,0.70328964]
[1761046692781,0.01035069,108680.0,108670.0,0.30028343]
[1761046695575,0.01035069,108680.0,108670.0,0.70328964]
[1761046699231,0.01035069,108680.0,108670.0,0.79310865]
[1761046700408,0.01035069,108680.0,108670.0,0.79410865]
[1761046701652,0.01035069,108680.0,108670.0,0.79510865]
[1761046703754,0.01035069,108680.0,108670.0,1.19811486]
[1761046704767,0.01035069,108680.0,108670.0,1.53811486]
[1761046706435,0.01035069,108680.0,108670.0,1.57429714]
[1761046713058,0.01035069,108680.0,108670.0,1.67133714]
[1761046713266,0.01035069,108680.0,108670.0,1.57429714]
[1761046716355,0.01035069,108680.0,108670.0,0.76828472]
[1761046716577,0.01035069,108680.0,108670.0,1.57429714]
[1761046716787,0.01035069,108680.0,108670.0,1.97730335]
[1761046716993,0.01035069,108680.0,108670.0,1.57429714]
[1761046722094,0.01035069,108680.0,108670.0,1.60195992]
[1761046726364,0.01035069,108680.0,108670.0,2.00496613]
[1761046726812,0.0439,108700.0,108690.0,0.18400956]
[1761046727019,0.0439,108700.0,108690.0,1.21436194]
[1761046727224,0.04460118,108700.0,108690.0,1.19596099]
[1761046728047,0.0447494,108700.0,108690.0,1.19596099]
[1761046728468,0.0447494,108700.0,108690.0,1.22019953]
[1761046728688,0.0447494,108700.0,108690.0,0.81719332]
[1761046729115,0.0447494,108700.0,108690.0,1.25638181]
[1761046729325,0.0447494,108700.0,108690.0,1.25738181]
[1761046731270,0.0547494,108700.0,108690.0,1.25738181]
[1761046739447,0.0547494,108700.0,108690.0,0.81819332]
[1761046740734,0.0547494,108700.0,108690.0,0.39194857]
[1761046740940,0.0547494,108700.0,108690.0,0.30212956]
[1761046741164,0.23874204,108700.0,108690.0,0.30212956]
[1761046741372,1.21718624,108700.0,108690.0,0.002]
[1761046741593,0.81418003,108700.0,108690.0,0.001]
[1761046741806,0.81418003,108700.0,108680.0,0.30014572]
[1761046742024,0.18403057,108680.0,108670.0,0.18404343]
[1761046742226,0.58703678,108680.0,108670.0,0.18404343]
[1761046742437,0.67683478,108690.0,108670.0,0.18404343]
[1761046742659,0.67683478,108690.0,108680.0,0.18402649]
[1761046742895,0.67683478,108690.0,108670.0,0.18404343]
[1761046743105,0.58701577,108690.0,108670.0,0.18404343]
[1761046743315,0.58701577,108690.0,108680.0,0.18402649]
[1761046743519,0.58701577,108690.0,108670.0,0.18404343]
[1761046744598,0.02767158,108680.0,108670.0,0.18404343]
[1761046745021,0.0514007,108680.0,108670.0,0.18404343]
[1761046745240,0.02767158,108680.0,108670.0,0.18404343]
[1761046746350,0.43067779,108680.0,108670.0,0.18404343]
[1761046746568,0.02767158,108680.0,108670.0,0.18404343]
[1761046747461,0.5927162,108690.0,108680.0,0.18402649]
[1761046747672,0.62038778,108690.0,108680.0,0.18402649]
[1761046748712,0.45450664,108690.0,108680.0,0.18402649]
[1761046748908,0.05150043,108690.0,108680.0,0.18402649]
[1761046749116,0.23550999,108690.0,108680.0,0.18402649]
[1761046750641,0.35162999,108690.0,108680.0,0.18402649]
[1761046751491,0.23550999,108690.0,108680.0,0.18402649]
[1761046752599,0.23050999,108690.0,108680.0,0.18402649]
[1761046755402,0.04650043,108690.0,108680.0,0.18402649]
[1761046757212,0.22550999,108690.0,108680.0,0.18402649]
[1761046761057,0.22050999,108690.0,108680.0,0.18402649]
[1761046763919,0.18403817,108680.0,108660.0,0.19400134]
[1761046764135,0.18404343,108670.0,108660.0,0.00073796]
[1761046764346,0.5870492,108680.0,108660.0,0.30091653]
[1761046764774,0.61472326,108680.0,108660.0,0.30091653]
[1761046767118,0.21171223,108680.0,108660.0,0.18479653]
[1761046767423,0.30153124,108680.0,108660.0,0.30091653]
[1761046767847,0.30153124,108680.0,108670.0,0.18404343]
[1761046768052,0.21171223,108680.0,108670.0,0.18404343]
[1761046768469,0.02767406,108680.0,108670.0,0.18404343]
[1761046769146,0.21170055,108680.0,108670.0,0.30016343]
[1761046769356,0.21170055,108680.0,108670.0,0.18404343]
[1761046769568,0.21170055,108680.0,108670.0,0.30016343]
[1761046769766,0.22170055,108680.0,108670.0,0.30016343]
[1761046770183,0.22170055,108680.0,108670.0,0.18404343]
[1761046770419,0.22170055,108680.0,108670.0,0.30016343]
[1761046770635,0.22170055,108680.0,108670.0,0.18404343]
[1761046770844,0.22170055,108680.0,108670.0,0.30016343]
[1761046771262,0.22170055,108680.0,108670.0,0.18404343]
[1761046771526,0.22170055,108680.0,108670.0,0.30016343]
[1761046773188,0.22170055,108680.0,108670.0,0.18404343]
[1761046773395,0.22170055,108680.0,108670.0,0.30016343]
[1761046775644,0.03767406,108680.0,108670.0,0.30016343]
[1761046775846,0.22170055,108680.0,108670.0,0.30016343]
[1761046776702,0.22170055,108680.0,108670.0,0.18404343]
[1761046776906,0.22170055,108680.0,108670.0,0.30016343]
[1761046777323,0.22170055,108680.0,108670.0,0.11612]
[1761046777949,0.22170055,108680.0,108670.0,0.30016343]
[1761046778376,0.22170055,108680.0,108660.0,0.18479653]
[1761046778594,0.18404343,108670.0,108660.0,0.72233359]
[1761046778796,0.22170055,108680.0,108670.0,0.18404343]
[1761046779655,0.22170055,108680.0,108660.0,0.30091653]
[1761046779870,0.22170055,108680.0,108660.0,0.18479653]
[1761046780053,0.22170055,108680.0,108670.0,0.18404343]
[1761046780954,0.22170055,108680.0,108660.0,0.30091653]
[1761046781159,0.22170055,108680.0,108670.0,0.18404343]
[1761046782036,0.19402649,108680.0,108670.0,0.18404343]
[1761046782589,0.19402649,108680.0,108670.0,0.30016343]
[1761046783603,0.19402649,108680.0,108670.0,0.11612]
[1761046783799,0.18404343,108670.0,108660.0,0.00073796]
[1761046784018,3.67687347,108670.0,108660.0,0.00073796]
[1761046784332,3.79299347,108670.0,108660.0,0.00073796]
[1761046786378,3.80742927,108670.0,108660.0,0.00073796]
[1761046786597,3.88281248,108670.0,108660.0,0.00073796]
[1761046788367,4.22281248,108670.0,108660.0,0.00073796]
[1761046788827,4.68968659,108670.0,108660.0,0.00073796]
[1761046789268,4.29667556,108670.0,108660.0,0.00073796]
[1761046789742,4.3111135,108670.0,108660.0,0.00073796]
[1761046789945,4.3121135,108670.0,108660.0,0.00073796]
[1761046791030,4.3131135,108670.0,108660.0,0.00073796]
[1761046792317,4.71612453,108670.0,108660.0,0.00073796]
[1761046796340,4.3131135,108670.0,108660.0,0.00073796]
[1761046797429,4.10717449,108670.0,108660.0,0.00073796]
[1761046797668,4.22329449,108670.0,108660.0,0.00073796]
[1761046798020,4.02358502,108670.0,108660.0,0.00073796]
[1761046798229,4.22329449,108670.0,108660.0,0.00073796]
[1761046804463,4.19561369,108670.0,108660.0,0.00073796]
[1761046804671,4.2854327,108670.0,108660.0,0.00073796]
[1761046805076,0.18407731,108650.0,108640.0,0.22098064]
[1761046805311,0.27389632,108650.0,108640.0,0.22098064]
[1761046805518,0.27389632,108650.0,108640.0,0.21177663]
[1761046805925,0.27389632,108650.0,108640.0,0.21356708]
[1761046806129,0.35999464,108650.0,108640.0,0.21356708]
[1761046806327,0.36008551,108650.0,108640.0,0.21356708]
[1761046808840,0.76341645,108650.0,108640.0,0.21356708]
[1761046812252,0.49324082,108650.0,108640.0,0.21356708]
[1761046812461,0.27398719,108650.0,108640.0,0.21356708]
[1761046812635,0.67731813,108650.0,108640.0,0.21356708]
[1761046812783,0.49324082,108650.0,108640.0,0.21356708]
[1761046812998,0.08990988,108650.0,108640.0,0.21356708]
[1761046813209,0.27398719,108650.0,108640.0,0.21356708]
[1761046813621,0.08990988,108650.0,108640.0,0.21356708]
[1761046816717,0.09990988,108650.0,108640.0,0.21356708]
[1761046817131,3.0,108650.0,108640.0,0.21356708]
[1761046818498,0.18407731,108650.0,108640.0,0.21356708]
[1761046819752,0.49740024,108660.0,108640.0,0.21356708]
[1761046819950,4.14776835,108660.0,108650.0,0.18407731]
[1761046820155,4.14776835,108660.0,108650.0,0.18551684]
[1761046820999,4.14876835,108660.0,108650.0,0.18551684]
[1761046821414,3.98316178,108660.0,108650.0,0.18551684]
[1761046821851,3.98416178,108660.0,108650.0,0.00143953]
[1761046823385,3.98416178,108660.0,108650.0,0.18551684]
[1761046824605,4.07398079,108660.0,108650.0,0.18551684]
[1761046826688,4.07398079,108660.0,108650.0,0.00143953]
[1761046826904,4.07398079,108660.0,108650.0,0.18551684]
[1761046827107,4.07398079,108660.0,108650.0,0.00143953]
[1761046828219,4.07398079,108660.0,108650.0,0.18551684]
[1761046829499,4.47731173,108660.0,108650.0,0.00143953]
[1761046835620,4.48731173,108660.0,108650.0,0.00143953]
[1761046837029,4.48731173,108660.0,108650.0,0.00116202]
[1761046842515,4.39749272,108660.0,108650.0,0.00116202]
[1761046850018,3.59083084,108660.0,108650.0,0.00116202]
[1761046850203,4.39749272,108660.0,108650.0,0.00116202]
[1761046851201,3.99416178,108660.0,108650.0,0.00116202]
[1761046854453,4.39749272,108660.0,108650.0,0.00116202]
[1761046854799,4.08398079,108660.0,108650.0,0.00116202]
[1761046855107,4.48731173,108660.0,108650.0,0.00116202]
[1761046857351,4.39749272,108660.0,108650.0,0.00116202]
[1761046860293,3.99416178,108660.0,108650.0,0.00116202]
[1761046868879,3.994105,108660.0,108650.0,0.00116202]
[1761046871114,0.012,108660.0,108650.0,0.58851349]
[1761046872035,0.011,108660.0,108650.0,0.58851349]
[1761046872888,0.24431999,108660.0,108650.0,0.00116202]
[1761046873114,3.64759415,108660.0,108650.0,0.00116202]
[1761046873538,3.64659415,108660.0,108650.0,0.00116202]
[1761046873974,3.24331999,108660.0,108650.0,0.00116202]
[1761046875449,3.35935999,108660.0,108650.0,0.00116202]
[1761046877828,0.33985562,108660.0,108650.0,0.18523933]
[1761046878033,0.01,108660.0,108650.0,0.58851349]
[1761046878164,0.01,108660.0,108650.0,0.70455349]
[1761046880123,0.01,108660.0,108650.0,0.7943725]
[1761046880535,0.01,108660.0,108650.0,0.82204778]
[1761046888288,0.01,108660.0,108650.0,0.82204778]
[1761046888511,0.00035063,108690.0,108680.0,0.18402649]
[1761046888748,0.00035063,108690.0,108680.0,0.72170329]
[1761046888957,0.00035063,108690.0,108680.0,0.70330065]
[1761046889813,0.00035063,108690.0,108680.0,0.30002649]
[1761046891078,0.00048702,108690.0,108680.0,0.30002649]
[1761046891299,0.00048702,108690.0,108680.0,0.70330065]
[1761046891847,0.00048702,108690.0,108680.0,0.30002649]
[1761046894280,0.00048702,108690.0,108680.0,0.70330065]
[1761046894685,0.00048702,108690.0,108680.0,0.79311966]
[1761046894957,0.00048702,108690.0,108680.0,0.82078622]
[1761046896595,0.00048702,108690.0,108680.0,0.82178622]
[1761046899061,0.01048702,108690.0,108680.0,0.82178622]
[1761046902730,0.01048702,108690.0,108680.0,0.30251206]
[1761046902946,0.01048702,108690.0,108680.0,0.41847206]
[1761046903158,0.19449658,108690.0,108680.0,0.14462656]
[1761046904833,0.19449658,108690.0,108680.0,0.1630292]
[1761046906149,0.19449658,108690.0,108680.0,0.14462656]
[1761046909655,0.59777074,108690.0,108680.0,0.14462656]
[1761046909866,0.19449658,108690.0,108680.0,0.14462656]
[1761046910151,3.59777074,108690.0,108680.0,0.14462656]
[1761046910355,3.19449658,108690.0,108680.0,0.14462656]
[1761046910578,3.25926977,108690.0,108680.0,0.14462656]
[1761046910788,3.19449658,108690.0,108680.0,0.14462656]
[1761046912610,3.59777074,108690.0,108680.0,0.02866656]
[1761046912819,4.1170049,108690.0,108680.0,0.001]
[1761046913245,3.71373074,108690.0,108680.0,0.001]
[1761046913440,4.20682391,108690.0,108680.0,0.001]
[1761046913650,4.54682391,108690.0,108680.0,0.001]
[1761046913853,0.08402649,108680.0,108670.0,0.02767253]
[1761046914083,3.48730065,108680.0,108670.0,0.02767253]
[1761046915510,3.08402649,108680.0,108670.0,0.02767253]
[1761046915713,3.08402649,108680.0,108670.0,0.04607687]
[1761046915915,3.08502649,108680.0,108670.0,0.04607687]
[1761046917679,3.48830065,108680.0,108670.0,0.04607687]
[1761046918793,3.08502649,108680.0,108670.0,0.04607687]
[1761046919221,0.08502649,108680.0,108670.0,0.04607687]
[1761046919434,0.08502649,108680.0,108670.0,0.2301203]
[1761046919678,0.08502649,108680.0,108670.0,0.02767253]
[1761046919880,0.18502649,108680.0,108670.0,0.2301203]
[1761046920089,0.18502649,108680.0,108670.0,0.21171596]
[1761046920528,0.001,108680.0,108670.0,0.21171596]
[1761046921334,0.18402649,108680.0,108670.0,0.21171596]
[1761046921740,0.19402649,108680.0,108670.0,0.21171596]
[1761046924304,0.19402649,108680.0,108670.0,0.18404343]
[1761046924505,0.19402649,108680.0,108670.0,0.20244777]
[1761046926054,0.01,108680.0,108670.0,0.6771366]
[1761046927772,0.01,108680.0,108670.0,0.6781366]
[1761046930714,0.01,108680.0,108670.0,0.67774573]
[1761046931572,0.01,108680.0,108670.0,0.27486244]
[1761046931751,0.01,108680.0,108670.0,0.67774573]
[1761046934746,0.01,108680.0,108670.0,0.27486244]
[1761046934967,0.01,108680.0,108670.0,0.67774573]
[1761046935615,0.59690978,108680.0,108670.0,0.27486244]
[1761046935830,0.01,108680.0,108670.0,0.27486244]
[1761046936036,0.01,108680.0,108670.0,0.67774573]
[1761046936233,0.40288329,108690.0,108670.0,0.67774573]
[1761046936499,0.58690824,108690.0,108680.0,0.01840264]
[1761046938114,0.58790824,108690.0,108680.0,0.01840264]
[1761046940093,0.18502495,108690.0,108680.0,0.01840264]
[1761046940460,0.58790824,108690.0,108680.0,0.01840264]
[1761046941506,0.18402649,108680.0,108670.0,0.27386007]
[1761046941716,0.58690978,108680.0,108670.0,0.27386007]
[1761046941916,0.58690978,108680.0,108670.0,0.27386244]
[1761046942406,0.98979307,108680.0,108660.0,0.30002037]
[1761046942619,0.58690978,108680.0,108670.0,0.01840434]
[1761046943804,0.58690978,108680.0,108670.0,0.20244777]
[1761046944215,0.58690978,108680.0,108670.0,0.31836777]
[1761046944428,0.58690978,108680.0,108670.0,0.29996343]
[1761046944639,0.59610871,108690.0,108670.0,0.38978244]
[1761046944848,3.0,108680.0,108670.0,0.38978244]
[1761046947053,0.19322542,108690.0,108680.0,0.18402649]
[1761046947162,0.59610871,108690.0,108680.0,0.20242913]
[1761046948469,0.00920047,108690.0,108680.0,0.20242913]
[1761046948595,0.18400956,108690.0,108680.0,0.20242913]
[1761046949200,0.58689285,108690.0,108680.0,0.01840264]
[1761046949615,0.58789285,108690.0,108680.0,0.01840264]
[1761046950047,0.58689285,108690.0,108680.0,0.01840264]
[1761046953832,0.58689285,108690.0,108680.0,0.20242913]
[1761046954277,0.40288329,108690.0,108680.0,0.20242913]
[1761046954482,0.15982,108700.0,108690.0,0.18400956]
[1761046954660,0.63086681,108700.0,108690.0,0.18400956]
[1761046954896,1.0337501,108700.0,108690.0,0.20241051]
[1761046955045,0.63086681,108700.0,108690.0,0.20241051]
[1761046955548,0.63086681,108700.0,108690.0,0.01840095]
[1761046955720,0.63086681,108700.0,108690.0,0.20241051]
[1761046955926,0.63186681,108700.0,108690.0,0.20241051]
[1761046956128,0.44787417,108700.0,108690.0,0.20241051]
[1761046956527,0.63186681,108700.0,108690.0,0.20241051]
[1761046957958,0.22898352,108700.0,108690.0,0.20241051]
[1761046958163,0.63186681,108700.0,108690.0,0.20241051]
[1761046959957,0.22898352,108700.0,108690.0,0.20241051]
[1761046960180,0.63186681,108700.0,108690.0,0.20241051]
[1761046962438,0.63186681,108700.0,108690.0,0.01840095]
[1761046962645,1.0347501,108700.0,108690.0,0.01840095]
[1761046962854,0.63186681,108700.0,108690.0,0.01840095]
[1761046963274,0.63186681,108700.0,108690.0,0.20241051]
[1761046973131,0.18400956,108690.0,108680.0,0.00046034]
[1761046973377,3.98977614,108690.0,108680.0,0.00046034]
[1761046974011,4.10569614,108690.0,108680.0,0.00046034]
[1761046974214,4.19551515,108690.0,108680.0,0.00046034]
[1761046974618,3.79263186,108690.0,108680.0,0.00046034]
[1761046974823,4.13263186,108690.0,108680.0,0.00046034]
[1761046975142,4.56400019,108690.0,108680.0,0.00046034]
[1761046975569,4.59167389,108690.0,108680.0,0.00046034]
[1761046975773,4.59267389,108690.0,108680.0,0.00046034]
[1761046976626,4.1897906,108690.0,108680.0,0.00046034]
[1761046980463,3.99346984,108690.0,108680.0,0.00046034]
[1761046981153,4.1774794,108690.0,108680.0,0.00046034]
[1761046981759,4.58036269,108690.0,108680.0,0.00046034]
[1761046982556,4.61654497,108690.0,108680.0,0.00046034]
[1761046982770,5.01942826,108690.0,108680.0,0.00046034]
[1761046982982,4.61654497,108690.0,108680.0,0.00046034]
[1761046983228,4.63098051,108690.0,108680.0,0.00046034]
[1761046983449,4.62998051,108690.0,108680.0,0.00046034]
[1761046983675,4.61754497,108690.0,108680.0,0.00046034]
[1761046983882,4.61654497,108690.0,108680.0,0.00046034]
[1761046984070,4.61554497,108690.0,108680.0,0.00046034]
[1761046984221,4.61654497,108690.0,108680.0,0.00046034]
[1761046984423,4.61854497,108690.0,108680.0,0.00046034]
[1761046986446,5.0358635,108690.0,108680.0,0.00046034]
[1761046986651,4.63298021,108690.0,108680.0,0.00046034]
[1761046991943,4.64741598,108690.0,108680.0,0.00046034]
[1761046992759,4.6481124,108690.0,108680.0,0.00046034]
[1761046996679,4.63367716,108690.0,108680.0,0.00046034]
[1761047000016,4.6481119,108690.0,108680.0,0.00046034]
[1761047003117,4.5321919,108690.0,108680.0,0.00046034]
[1761047003262,4.1289604,108690.0,108680.0,0.00046034]
[1761047003476,4.6481119,108690.0,108680.0,0.00046034]
[1761047003695,4.45040128,108690.0,108680.0,0.00046034]
[1761047004127,4.43596551,108690.0,108680.0,0.00046034]
[1761047004530,4.03273401,108690.0,108680.0,0.00046034]
[1761047004927,3.38758122,108690.0,108680.0,0.00046034]
[1761047005126,3.47582752,108690.0,108680.0,0.00046034]
[1761047005367,3.87905902,108690.0,108680.0,0.00046034]